bitfinex/quotes_BTCUSD_20250127
["timestamp","ask_amount","ask_price","bid_price","bid_amount"]
[1737994791689,0.42796449,101060.0,101050.0,0.00029757]
[1737994791917,0.27953849,101060.0,101050.0,0.00029757]
[1737994792125,0.42796449,101060.0,101050.0,0.00029757]
[1737994792349,0.59743391,101060.0,101050.0,0.00029757]
[1737994792723,0.59943391,101060.0,101050.0,0.00029757]
[1737994794255,0.6091939,101060.0,101050.0,0.00029757]
[1737994794667,0.6570939,101060.0,101050.0,0.00029757]
[1737994794939,0.6770939,101060.0,101050.0,0.00029757]
[1737994796221,0.6850939,101060.0,101050.0,0.00029757]
[1737994796636,0.6940939,101060.0,101050.0,0.00129757]
[1737994797047,0.6760939,101060.0,101050.0,0.00029757]
[1737994797263,0.78244119,101060.0,101050.0,0.00029757]
[1737994797512,0.79144119,101060.0,101050.0,0.00129757]
[1737994797721,0.77144119,101060.0,101050.0,0.00129757]
[1737994798130,0.023,101040.0,101000.0,0.0798415]
[1737994798336,0.346475,101020.0,101000.0,0.0798415]
[1737994798541,0.26884729,101010.0,101000.0,0.0001415]
[1737994798745,0.41884729,101010.0,101000.0,0.0001415]
[1737994799615,0.41884729,101010.0,101000.0,0.00028967]
[1737994799831,0.24734729,101010.0,101000.0,0.00028967]
[1737994800048,0.09734729,101010.0,101000.0,0.00028967]
[1737994801276,0.675377,101020.0,101000.0,0.00028967]
[1737994801277,0.3289,101020.0,101010.0,0.1485]
[1737994801581,0.556569,101060.0,101020.0,0.1263]
[1737994801820,0.09734729,101050.0,101020.0,0.472755]
[1737994802026,0.09734729,101050.0,101030.0,0.148466]
[1737994802443,0.09734729,101050.0,101030.0,0.148469]
[1737994802668,0.00990169,101060.0,101030.0,0.346421]
[1737994802873,0.00990169,101060.0,101040.0,0.148455]
[1737994802874,0.10724898,101060.0,101040.0,0.148455]
[1737994803085,0.10724898,101060.0,101030.0,0.544372]
[1737994803508,0.25567598,101060.0,101030.0,0.34642]
[1737994803713,0.09734729,101050.0,101020.0,0.670715]
[1737994803919,0.09734729,101050.0,101030.0,0.14847]
[1737994804123,0.09734729,101050.0,101020.0,0.67085917]
[1737994804733,0.44372829,101050.0,101020.0,0.12644817]
[1737994804938,0.346399,101040.0,101020.0,0.12644817]
[1737994805155,0.09273733,101030.0,101020.0,0.07774817]
[1737994805378,0.26544444,101030.0,101020.0,0.00014817]
[1737994805581,0.26420733,101030.0,101020.0,0.00014817]
[1737994805796,0.58367675,101030.0,101020.0,0.00014817]
[1737994806826,0.58367675,101030.0,101020.0,0.00114817]
[1737994807163,0.61723441,101030.0,101020.0,0.00114817]
[1737994807365,0.173,101020.0,101000.0,0.0001415]
[1737994807590,0.91845448,101010.0,101000.0,0.0001415]
[1737994807794,0.91721671,101010.0,101000.0,0.0001415]
[1737994808543,0.74774729,101010.0,101000.0,0.0001415]
[1737994809757,0.75674729,101010.0,101000.0,0.0001415]
[1737994810413,0.76374729,101010.0,101000.0,0.0011415]
[1737994811622,0.61524729,101010.0,101000.0,0.0011415]
[1737994812068,0.62524669,101010.0,101000.0,0.0011415]
[1737994812938,0.77374669,101010.0,101000.0,0.0011415]
[1737994813367,0.94321611,101010.0,101000.0,0.0011415]
[1737994813575,0.77374669,101010.0,101000.0,0.0011415]
[1737994816247,0.47524669,101010.0,101000.0,0.0011415]
[1737994816451,0.62374669,101010.0,101000.0,0.0011415]
[1737994816657,0.77374669,101010.0,101000.0,0.0011415]
[1737994817046,0.62524669,101010.0,101000.0,0.0011415]
[1737994817277,0.77374669,101010.0,101000.0,0.0011415]
[1737994818734,0.62524669,101010.0,101000.0,0.0011415]
[1737994818944,0.77374669,101010.0,101000.0,0.0011415]
[1737994819377,0.94321611,101010.0,101000.0,0.0011415]
[1737994819794,0.148529,100990.0,100980.0,0.00029715]
[1737994820002,0.58958376,100990.0,100980.0,0.00044586]
[1737994820209,0.91724571,100990.0,100980.0,0.00044586]
[1737994820415,1.044593,100990.0,100980.0,0.00044586]
[1737994820841,1.024593,100990.0,100980.0,0.00044586]
[1737994821049,0.91724571,100990.0,100980.0,0.00044586]
[1737994822259,0.92724571,100990.0,100980.0,0.00044586]
[1737994822432,1.00714571,100990.0,100980.0,0.00044586]
[1737994822657,1.01614571,100990.0,100980.0,0.00044586]
[1737994822856,1.113493,100990.0,100980.0,0.00044586]
[1737994823057,1.122493,100990.0,100980.0,0.00044586]
[1737994823399,1.113493,100990.0,100980.0,0.00044586]
[1737994823915,1.122493,100990.0,100980.0,0.00044586]
[1737994824331,0.993964,100990.0,100970.0,0.00081654]
[1737994824508,0.58959893,100980.0,100970.0,0.000866]
[1737994824766,0.58836071,100980.0,100970.0,0.000866]
[1737994826042,0.59736071,100980.0,100970.0,0.000866]
[1737994826252,0.704708,100980.0,100970.0,0.000866]
[1737994826459,0.694708,100980.0,100970.0,0.000866]
[1737994826665,0.704708,100980.0,100970.0,0.000866]
[1737994827301,0.733708,100980.0,100970.0,0.000866]
[1737994831176,0.61636071,100980.0,100970.0,0.000866]
[1737994831385,0.60636071,100980.0,100970.0,0.000866]
[1737994832023,0.60636071,100980.0,100970.0,0.00971009]
[1737994832024,0.28417695,100980.0,100970.0,0.00971009]
[1737994832470,0.43417695,100980.0,100970.0,0.00971009]
[1737994832878,0.30717695,100980.0,100970.0,0.00971009]
[1737994833356,0.11534729,100980.0,100970.0,0.00971009]
[1737994833575,0.11534729,100980.0,100970.0,0.00647905]
[1737994833732,0.43336071,100980.0,100970.0,0.00647905]
[1737994833938,0.60636071,100980.0,100970.0,0.00647905]
[1737994834141,0.44881671,100980.0,100970.0,0.00647905]
[1737994834338,0.42789129,100980.0,100970.0,0.00647905]
[1737994834519,0.43589129,100980.0,100970.0,0.00647905]
[1737994834697,0.60536071,100980.0,100970.0,0.00647905]
[1737994834901,0.92526071,100980.0,100970.0,0.00647905]
[1737994835109,0.92526071,100980.0,100970.0,0.000866]
[1737994835312,0.93426071,100980.0,100970.0,0.00777976]
[1737994835520,0.92526071,100980.0,100970.0,0.000866]
[1737994835729,0.91726071,100980.0,100970.0,0.00777976]
[1737994835924,0.94572602,100980.0,100970.0,0.00777976]
[1737994836268,0.92326071,100980.0,100970.0,0.00777976]
[1737994836473,0.93226071,100980.0,100970.0,0.00777976]
[1737994836688,0.92626071,100980.0,100970.0,0.00777976]
[1737994837065,0.93426071,100980.0,100970.0,0.00777976]
[1737994838196,0.93426071,100980.0,100970.0,0.000866]
[1737994838777,0.685708,100980.0,100970.0,0.000866]
[1737994838992,0.685708,100980.0,100970.0,0.00781041]
[1737994839164,0.703708,100980.0,100970.0,0.000866]
[1737994839397,0.703708,100980.0,100970.0,0.00782242]
[1737994839398,0.694708,100980.0,100970.0,0.00782242]
[1737994839610,0.685708,100980.0,100970.0,0.00782242]
[1737994839827,0.694708,100980.0,100970.0,0.00782242]
[1737994840079,0.72194723,100960.0,100950.0,0.00029736]
[1737994840288,0.6498251,100960.0,100950.0,0.00079286]
[1737994840662,0.6498251,100960.0,100950.0,0.00747526]
[1737994840868,0.6498251,100960.0,100950.0,0.00079286]
[1737994841712,0.6588251,100960.0,100950.0,0.00079286]
[1737994842852,0.6588251,100960.0,100950.0,0.00747526]
[1737994843746,0.6658251,100960.0,100950.0,0.00747526]
[1737994846321,0.72665822,100960.0,100950.0,0.00747526]
[1737994846709,0.72665822,100960.0,100950.0,0.00079286]
[1737994846710,0.6658251,100960.0,100950.0,0.00079286]
[1737994847038,0.67575839,100960.0,100950.0,0.00079286]
[1737994847609,0.023,100940.0,100920.0,0.00095954]
[1737994847811,0.298632,100920.0,100910.0,0.01638324]
[1737994848017,0.56544871,100920.0,100910.0,0.01648121]
[1737994848417,0.58844871,100920.0,100910.0,0.01648121]
[1737994848831,0.58844871,100920.0,100910.0,0.01552167]
[1737994849222,0.76691813,100920.0,100910.0,0.01552167]
[1737994849398,0.75791813,100920.0,100910.0,0.01552167]
[1737994849643,0.58844871,100920.0,100910.0,0.01552167]
[1737994849829,0.59744871,100920.0,100910.0,0.01552167]
[1737994850247,0.11534729,100920.0,100910.0,0.09522167]
[1737994850449,0.018,100920.0,100910.0,0.09522167]
[1737994850815,0.009,100920.0,100910.0,0.24386867]
[1737994851233,0.07509024,100940.0,100920.0,0.148632]
[1737994851443,0.009,100920.0,100910.0,0.44205067]
[1737994851865,0.09734729,100930.0,100910.0,0.64023467]
[1737994852068,0.009,100920.0,100910.0,0.24983101]
[1737994852698,0.01011047,100940.0,100920.0,0.346794]
[1737994852900,0.55922647,100960.0,100930.0,0.277217]
[1737994853120,0.09734729,100950.0,100930.0,0.48137393]
[1737994853323,0.24734729,100950.0,100930.0,0.48137393]
[1737994853939,0.24734729,100950.0,100930.0,0.28322093]
[1737994854146,0.24734729,100950.0,100930.0,0.13460393]
[1737994854563,0.16946942,100940.0,100930.0,0.13460393]
[1737994854772,0.09734729,100940.0,100930.0,0.13460393]
[1737994855541,0.24595029,100940.0,100930.0,0.08540393]
[1737994855706,0.09734729,100940.0,100930.0,0.08540393]
[1737994856161,0.10634729,100940.0,100930.0,0.08540393]
[1737994856406,0.01,100940.0,100930.0,0.23402093]
[1737994857174,0.10734729,100940.0,100930.0,0.08540393]
[1737994857378,0.10734729,100940.0,100930.0,0.23402093]
[1737994857586,0.01,100940.0,100930.0,0.23402093]
[1737994857792,0.01,100940.0,100930.0,0.28182093]
[1737994859177,0.009,100940.0,100930.0,0.37916822]
[1737994859383,0.06143539,100960.0,100950.0,0.148588]
[1737994859791,0.06143539,100960.0,100950.0,0.00586806]
[1737994860212,0.06143539,100960.0,100950.0,0.15445606]
[1737994860407,0.06143539,100960.0,100950.0,0.00586806]
[1737994860689,0.06143539,100960.0,100950.0,0.00596603]
[1737994861219,0.18178268,100960.0,100950.0,0.00596603]
[1737994861424,0.15878268,100960.0,100950.0,0.00596603]
[1737994861642,0.06143539,100960.0,100950.0,0.15455403]
[1737994861856,0.06273297,100960.0,100950.0,0.15455403]
[1737994862054,0.06273297,100960.0,100950.0,0.54967074]
[1737994862505,0.06173297,100960.0,100950.0,0.55067074]
[1737994863205,0.06173297,100960.0,100950.0,0.45332345]
[1737994863407,0.06173297,100960.0,100950.0,0.28385403]
[1737994863651,0.06273297,100960.0,100950.0,0.28385403]
[1737994865745,0.00129758,100960.0,100950.0,0.28385403]
[1737994865951,0.00129758,100960.0,100950.0,0.45332345]
[1737994866156,0.00129758,100960.0,100950.0,0.55067074]
[1737994866687,0.00129758,100960.0,100950.0,0.73067074]
[1737994866848,0.00129758,100960.0,100950.0,0.82979244]
[1737994867031,0.00129758,100960.0,100950.0,0.81979244]
[1737994867456,0.00129758,100960.0,100950.0,0.82979244]
[1737994867835,0.00029758,100960.0,100950.0,0.82979244]
[1737994868015,0.00129758,100960.0,100950.0,0.83379244]
[1737994868218,0.00129758,100960.0,100950.0,0.83279244]
[1737994868711,0.00229758,100960.0,100950.0,0.83579244]
[1737994870343,0.00229758,100960.0,100950.0,0.82579244]
[1737994871539,0.00229758,100960.0,100950.0,0.84557092]
[1737994871711,0.00229758,100960.0,100950.0,0.86857092]
[1737994872464,0.00229758,100960.0,100950.0,0.84557092]
[1737994873212,0.00029736,100980.0,100970.0,0.62612742]
[1737994873409,0.00029736,100980.0,100970.0,0.72347471]
[1737994873617,0.00029736,100980.0,100970.0,0.8511217]
[1737994874377,3.6e-07,100980.0,100970.0,0.8511217]
[1737994874588,0.00029736,101020.0,101010.0,0.2247]
[1737994874788,0.00029736,101020.0,101010.0,0.43500913]
[1737994874972,0.00029736,101020.0,101010.0,0.44035585]
[1737994875143,0.00029736,101020.0,101010.0,0.71331769]
[1737994875370,0.00029736,101020.0,101010.0,0.70331769]
[1737994875571,0.00029736,101020.0,101010.0,0.59035585]
[1737994875782,0.00079274,101020.0,101010.0,0.59035585]
[1737994875982,0.00079274,101020.0,101010.0,0.59135585]
[1737994876182,0.00079274,101020.0,101010.0,0.59435585]
[1737994876676,0.00079274,101020.0,101010.0,0.65085011]
[1737994877188,0.00079274,101020.0,101010.0,0.23404672]
[1737994877392,0.00079274,101020.0,101010.0,0.00934672]
[1737994877807,0.41608113,101020.0,101010.0,0.00934672]
[1737994877999,0.24662503,101020.0,101010.0,0.00934672]
[1737994878205,0.56608113,101020.0,101010.0,0.00934672]
[1737994878724,0.39662503,101020.0,101010.0,0.00634672]
[1737994878942,0.59008113,101020.0,101010.0,0.00534672]
[1737994879147,0.59908113,101020.0,101010.0,0.00634672]
[1737994879345,0.59808113,101020.0,101010.0,0.001]
[1737994879583,0.59808113,101020.0,101010.0,0.00634672]
[1737994879787,0.59808113,101020.0,101010.0,0.001]
[1737994879960,0.59808113,101020.0,101010.0,0.00634672]
[1737994880109,0.59808113,101020.0,101010.0,0.001]
[1737994880310,0.59808113,101020.0,101010.0,0.00644614]
[1737994880518,0.92698113,101020.0,101010.0,0.00644614]
[1737994880717,0.97578113,101020.0,101010.0,0.00644614]
[1737994880919,0.80337562,101020.0,101010.0,0.00644614]
[1737994881148,0.60609062,101020.0,101010.0,0.00644614]
[1737994881346,0.72552503,101020.0,101010.0,0.00544614]
[1737994881546,0.73252503,101020.0,101010.0,0.00644614]
[1737994881759,0.93398113,101020.0,101010.0,0.001]
[1737994881963,0.57704003,101020.0,101010.0,0.00544614]
[1737994882181,0.32969274,101020.0,101000.0,0.346531]
[1737994882383,0.32969274,101020.0,101010.0,0.00542457]
[1737994882384,0.34069274,101020.0,101010.0,0.00542457]
[1737994882537,0.58652503,101020.0,101010.0,0.00542457]
[1737994882734,0.89698113,101020.0,101010.0,0.00542457]
[1737994882953,0.89698113,101020.0,100980.0,0.422776]
[1737994882954,0.54452,101010.0,100980.0,0.422776]
[1737994883152,0.81132339,101010.0,100980.0,0.422776]
[1737994883372,0.81106104,101010.0,100980.0,0.422776]
[1737994883583,0.44512484,101000.0,100970.0,0.476516]
[1737994883795,0.44388729,101000.0,100970.0,0.476516]
[1737994883997,0.24586729,101000.0,100970.0,0.674582]
[1737994884215,0.44388829,101000.0,100970.0,0.674582]
[1737994884419,0.96137839,101000.0,100970.0,0.27845]
[1737994884624,0.148547,100980.0,100960.0,0.0819]
[1737994884843,0.24589329,100980.0,100950.0,0.471287]
[1737994885078,0.44395229,100980.0,100970.0,0.006]
[1737994885286,0.09734729,100980.0,100970.0,0.006]
[1737994885547,0.44396129,100980.0,100970.0,0.001]
[1737994885787,0.44545637,100980.0,100970.0,0.03966]
[1737994886192,0.09984237,100980.0,100970.0,0.03966]
[1737994886401,0.24738637,100980.0,100970.0,0.03966]
[1737994886609,0.24738637,100980.0,100970.0,0.0398016]
[1737994887049,0.09884237,100980.0,100970.0,0.0398016]
[1737994887268,0.00049508,100980.0,100970.0,0.0398016]
[1737994887489,0.00149508,100980.0,100970.0,0.1883596]
[1737994887899,0.00249508,100980.0,100970.0,0.1883596]
[1737994888104,0.00049508,100980.0,100970.0,0.1883596]
[1737994888352,0.00149508,100980.0,100970.0,0.1883596]
[1737994888777,0.00149508,100980.0,100970.0,0.0398016]
[1737994888982,0.15003908,100980.0,100970.0,0.0398016]
[1737994889189,0.41684247,100980.0,100970.0,0.0398016]
[1737994889794,0.56684247,100980.0,100970.0,0.0398016]
[1737994890278,0.24884237,100980.0,100970.0,0.0398016]
[1737994890685,0.00149508,100980.0,100970.0,0.1883596]
[1737994890917,0.00049508,100980.0,100970.0,0.1883596]
[1737994891622,0.00949508,100980.0,100970.0,0.1883596]
[1737994892055,0.00049508,100980.0,100970.0,0.1883596]
[1737994892235,0.00149508,100980.0,100970.0,0.1883596]
[1737994893007,0.00249508,100980.0,100970.0,0.1883596]
[1737994893244,0.00249508,100980.0,100970.0,0.45516299]
[1737994893468,0.00149508,100980.0,100970.0,0.53396299]
[1737994893674,0.00149508,100980.0,100970.0,0.68396299]
[1737994893877,0.00249508,100980.0,100970.0,0.71396299]
[1737994894092,0.15026336,101020.0,100970.0,0.71396299]
[1737994894300,0.2477591,101020.0,101000.0,0.148513]
[1737994895161,0.4457391,101020.0,100990.0,0.544565]
[1737994895371,0.4467391,101020.0,100990.0,0.544565]
[1737994895579,0.8141852,101020.0,100990.0,0.34654]
[1737994895814,0.45673399,101020.0,101000.0,0.148514]
[1737994896020,0.46573399,101020.0,100990.0,0.544568]
[1737994896226,0.45673399,101020.0,100990.0,0.544568]
[1737994896436,0.25875399,101020.0,100990.0,0.544568]
[1737994896648,0.1002731,101020.0,101000.0,0.346531]
[1737994896855,0.0992731,101020.0,101000.0,0.346531]
[1737994897070,0.2572731,101020.0,101000.0,0.347531]
[1737994897267,0.2572731,101020.0,101010.0,0.00537823]
[1737994897686,0.4147581,101020.0,101010.0,0.00537823]
[1737994897889,0.2662731,101020.0,101010.0,0.00537823]
[1737994898091,0.2492731,101020.0,101010.0,0.00537823]
[1737994898254,0.2582731,101020.0,101010.0,0.00537823]
[1737994898463,0.01892581,101020.0,101010.0,0.47433433]
[1737994898678,0.00992581,101020.0,101010.0,0.48142552]
[1737994898855,0.01892581,101020.0,101010.0,0.00637823]
[1737994899063,0.2647581,101020.0,101010.0,0.00637823]
[1737994899268,0.1162731,101020.0,101010.0,0.00637823]
[1737994900121,0.2889955,101020.0,101010.0,0.00637823]
[1737994900325,0.1082731,101020.0,101010.0,0.00537823]
[1737994900666,0.2577581,101020.0,101010.0,0.01237823]
[1737994900905,0.2487581,101020.0,101010.0,0.01237823]
[1737994901114,0.2477581,101020.0,101010.0,0.00537823]
[1737994901308,0.00192581,101020.0,101010.0,0.15387823]
[1737994901568,0.00292581,101020.0,101010.0,0.15387823]
[1737994901742,0.00392581,101020.0,101010.0,0.15587823]
[1737994902162,0.00292581,101020.0,101010.0,0.15387823]
[1737994902497,0.01192581,101020.0,101010.0,0.15387823]
[1737994902822,0.00292581,101020.0,101010.0,0.15387823]
[1737994903027,0.00292581,101020.0,101010.0,0.26691023]
[1737994903244,0.00292581,101020.0,101010.0,0.59625752]
[1737994903470,0.00192581,101020.0,101010.0,0.72928952]
[1737994903683,0.00192581,101020.0,101010.0,0.82835532]
[1737994903884,0.00192581,101020.0,101010.0,0.71932332]
[1737994904121,0.00192581,101020.0,101010.0,0.72132332]
[1737994904334,0.00192581,101020.0,101010.0,0.71732332]
[1737994904513,0.00029715,101050.0,101040.0,0.148456]
[1737994904715,0.09764444,101050.0,101040.0,0.1537533]
[1737994904941,0.09764444,101050.0,101040.0,0.0052973]
[1737994905956,0.09764444,101050.0,101040.0,0.1557533]
[1737994906525,0.09764444,101050.0,101040.0,0.0072973]
[1737994907534,0.24539471,101050.0,101040.0,0.0072973]
[1737994907733,0.26839471,101050.0,101040.0,0.0072973]
[1737994907940,0.26839471,101050.0,101040.0,0.0112973]
[1737994909152,0.26839471,101050.0,101040.0,0.0092973]
[1737994909586,0.27769207,101050.0,101040.0,0.0092973]
[1737994909944,0.59711802,101050.0,101040.0,0.0052973]
[1737994910157,0.64661802,101050.0,101040.0,0.0052973]
[1737994910356,0.346421,101040.0,101010.0,0.346475]
[1737994910562,0.148471,101030.0,101010.0,0.346475]
[1737994910691,0.64172529,101040.0,101010.0,0.346475]
[1737994910893,0.64172129,101040.0,101010.0,0.346475]
[1737994911161,0.44377929,101030.0,101000.0,0.68227561]
[1737994911288,0.49328429,101030.0,101000.0,0.43591406]
[1737994911489,0.83973829,101030.0,101010.0,0.007]
[1737994911696,0.39582829,101030.0,101010.0,0.155495]
[1737994912009,0.59379829,101030.0,101010.0,0.009]
[1737994912232,0.61679829,101030.0,101020.0,0.00513325]
[1737994912645,0.81576829,101030.0,101010.0,0.007]
[1737994912844,0.61779829,101030.0,101020.0,0.00513325]
[1737994913252,0.61779829,101030.0,101010.0,0.007]
[1737994913411,0.61779829,101030.0,101020.0,0.00513325]
[1737994913632,0.41982829,101030.0,101020.0,0.00513325]
[1737994913837,0.61779929,101030.0,101000.0,0.62586845]
[1737994914116,0.15,101030.0,101010.0,0.35162225]
[1737994914320,0.152,101030.0,101010.0,0.35362225]
[1737994914625,0.39805753,101030.0,101010.0,0.00513325]
[1737994914835,0.24706953,101020.0,101010.0,0.00513325]
[1737994915040,0.09734729,101020.0,101010.0,0.00513325]
[1737994915243,0.09734729,101020.0,101010.0,0.15363325]
[1737994915596,0.09734729,101020.0,101010.0,0.15563325]
[1737994915803,0.15,101030.0,101010.0,0.35161825]
[1737994916057,0.15,101030.0,101010.0,0.00264061]
[1737994916058,0.09734729,101020.0,101010.0,0.00264061]
[1737994916263,0.09734729,101020.0,101010.0,0.01178761]
[1737994916624,0.09734729,101020.0,101010.0,0.16028761]
[1737994916823,0.09734729,101020.0,101010.0,0.00478761]
[1737994917183,0.09734729,101020.0,101010.0,0.01178761]
[1737994918031,0.09734729,101020.0,101010.0,0.00678761]
[1737994918875,0.09734729,101020.0,101010.0,0.15528761]
[1737994919080,0.70538969,101040.0,101010.0,0.35327861]
[1737994919278,0.43617767,101040.0,101020.0,0.148473]
[1737994919469,0.57470329,101040.0,101020.0,0.35129418]
[1737994919665,0.57470329,101040.0,101020.0,0.15332518]
[1737994919901,0.42624729,101040.0,101020.0,0.35130418]
[1737994920107,0.42624729,101040.0,101030.0,0.14847]
[1737994920108,0.3289,101040.0,101030.0,0.14847]
[1737994920499,0.00029736,101050.0,101030.0,0.3512549]
[1737994920703,0.00029736,101050.0,101030.0,0.1532989]
[1737994920704,0.009,101040.0,101030.0,0.1532989]
[1737994920859,0.003,101040.0,101030.0,0.1532989]
[1737994921238,0.44401065,101050.0,101030.0,0.0048289]
[1737994921369,0.009,101040.0,101030.0,0.0048289]
[1737994921572,0.009,101040.0,101030.0,0.1572989]
[1737994922108,0.009,101040.0,101030.0,0.0108289]
[1737994922334,0.10634729,101040.0,101030.0,0.0108289]
[1737994922511,0.2560404,101040.0,101030.0,0.0108289]
[1737994922723,0.59722924,101040.0,101030.0,0.0108289]
[1737994923075,0.59722924,101040.0,101030.0,0.0068289]
[1737994923486,0.58822924,101040.0,101030.0,0.0048289]
[1737994923707,0.148485,101020.0,101010.0,0.0001415]
[1737994923916,0.09734729,101020.0,101010.0,0.0001415]
[1737994924123,0.41883229,101020.0,101010.0,0.0001415]
[1737994924352,0.63475824,101020.0,101010.0,0.0001415]
[1737994924573,0.57842446,101020.0,101010.0,0.0001415]
[1737994925037,0.58742446,101020.0,101010.0,0.0011415]
[1737994925234,0.79231663,101020.0,101010.0,0.0011415]
[1737994925439,0.67922446,101020.0,101010.0,0.0011415]
[1737994925636,0.66922446,101020.0,101010.0,0.0011415]
[1737994926619,0.72576491,101020.0,101010.0,0.0011415]
[1737994927017,0.71876491,101020.0,101010.0,0.0001415]
[1737994927221,0.72876491,101020.0,101010.0,0.00492401]
[1737994927590,0.8451122,101020.0,101010.0,0.00492401]
[1737994927771,0.8341122,101020.0,101010.0,0.00492401]
[1737994927980,0.3315,101010.0,101000.0,0.00014845]
[1737994928178,0.59847991,101010.0,101000.0,0.00014845]
[1737994928476,0.67407991,101010.0,101000.0,0.00014845]
[1737994928695,0.67407991,101010.0,101000.0,0.00454188]
[1737994928696,0.66407991,101010.0,101000.0,0.00454188]
[1737994928934,0.66407991,101010.0,101000.0,0.00014845]
[1737994929140,0.49444729,101010.0,101000.0,0.00014845]
[1737994929348,0.34444729,101010.0,101000.0,0.00454188]
[1737994929557,0.26884729,101010.0,101000.0,0.00454188]
[1737994929758,0.41884729,101010.0,101000.0,0.00454188]
[1737994930190,0.58847991,101010.0,101000.0,0.00454188]
[1737994930400,0.60447991,101010.0,101000.0,0.00554188]
[1737994932479,0.58147991,101010.0,101000.0,0.00554188]
[1737994932660,0.41184729,101010.0,101000.0,0.00554188]
[1737994932884,0.43484729,101010.0,101000.0,0.00554188]
[1737994933291,0.4542563,101010.0,101000.0,0.00568348]
[1737994934256,0.11334729,101010.0,101000.0,0.15419748]
[1737994934680,0.016,101010.0,101000.0,0.15419748]
[1737994934889,0.16210802,101010.0,101000.0,0.00568348]
[1737994935093,0.1121928,101010.0,101000.0,0.23059748]
[1737994935286,0.01360802,101010.0,101000.0,0.23059748]
[1737994935494,0.01360802,101010.0,101000.0,0.4496301]
[1737994935829,0.009,101010.0,101000.0,0.69597739]
[1737994936248,0.009,101010.0,101000.0,0.87561001]
[1737994936444,0.009,101010.0,101000.0,0.70597739]
[1737994936637,0.00029736,101040.0,101030.0,0.23057]
[1737994937143,0.00029736,101040.0,101030.0,0.28052608]
[1737994937890,0.00129736,101040.0,101030.0,0.28652608]
[1737994938303,0.00229736,101040.0,101030.0,0.29252608]
[1737994938505,0.00129736,101040.0,101030.0,0.28652608]
[1737994939826,0.00229736,101040.0,101030.0,0.29152608]
[1737994940076,0.00229736,101040.0,101030.0,0.14305608]
[1737994940292,0.09964465,101040.0,101030.0,0.01545608]
[1737994940458,0.09964465,101040.0,101030.0,0.16392608]
[1737994941076,0.00229736,101040.0,101030.0,0.16392608]
[1737994941450,0.00229736,101040.0,101030.0,0.15947]
[1737994942573,0.00229736,101040.0,101030.0,0.32910262]
[1737994942773,0.00229736,101040.0,101030.0,0.55784991]
[1737994942994,0.00229736,101040.0,101030.0,0.83688661]
[1737994943170,0.00229736,101040.0,101030.0,0.85988661]
[1737994943863,0.00129736,101040.0,101030.0,0.85388661]
[1737994944290,0.00229736,101040.0,101030.0,0.85788661]
[1737994944496,0.001,101040.0,101030.0,0.85788661]
[1737994944699,0.00029736,101050.0,101040.0,0.16]
[1737994944904,0.00029736,101050.0,101040.0,0.65743591]
[1737994946420,0.00029736,101050.0,101040.0,0.47780329]
[1737994946627,0.00029736,101050.0,101040.0,0.64743591]
[1737994947054,0.00139543,101050.0,101040.0,0.48580329]
[1737994947255,0.00239543,101050.0,101040.0,0.49480329]
[1737994950306,0.00239543,101050.0,101040.0,0.397456]
[1737994950924,0.00239543,101050.0,101040.0,0.247456]
[1737994951082,0.00239543,101050.0,101040.0,0.165456]
[1737994951495,0.00239543,101050.0,101040.0,0.017]
[1737994951842,0.24818372,101050.0,101040.0,0.017]
[1737994952590,0.39818372,101050.0,101040.0,0.017]
[1737994952819,0.39718372,101050.0,101040.0,0.008]
[1737994953184,0.24874272,101050.0,101020.0,0.544414]
[1737994953325,0.49776743,101050.0,101040.0,0.008]
[1737994953522,0.59511472,101050.0,101040.0,0.006]
[1737994953972,0.60311472,101050.0,101040.0,0.001]
[1737994954175,0.346407,101040.0,101020.0,0.148472]
[1737994954404,0.64170529,101040.0,101020.0,0.149472]
[1737994954611,0.64170529,101040.0,101020.0,0.149483]
[1737994954811,0.44375429,101040.0,101020.0,0.346462]
[1737994954986,0.24580929,101040.0,101020.0,0.544434]
[1737994955191,0.44375129,101040.0,101020.0,0.148483]
[1737994955383,0.44375129,101040.0,101020.0,0.346461]
[1737994955707,0.148462,101040.0,101020.0,0.544432]
[1737994956060,0.64294042,101040.0,101010.0,0.6686006]
[1737994956266,0.148474,101030.0,101010.0,0.6196006]
[1737994956477,0.44378229,101030.0,101010.0,0.5446006]
[1737994956679,0.09734729,101030.0,101010.0,0.7425856]
[1737994956885,0.24581729,101030.0,101020.0,0.001]
[1737994957067,0.24581729,101030.0,101010.0,0.5446026]
[1737994957426,0.54936,101040.0,101020.0,0.346461]
[1737994957635,0.64170729,101040.0,101020.0,0.148483]
[1737994958063,0.83966229,101040.0,101010.0,0.7525916]
[1737994958292,0.64170729,101040.0,101020.0,0.148484]
[1737994958660,0.83966029,101040.0,101020.0,0.148484]
[1737994958865,0.83966229,101040.0,101010.0,0.7475916]
[1737994959081,0.64170729,101040.0,101020.0,0.346461]
[1737994959315,0.44375529,101040.0,101020.0,0.346461]
[1737994959479,0.09734729,101040.0,101020.0,0.54443]
[1737994959648,0.40380429,101040.0,101020.0,0.54543]
[1737994959863,0.24734729,101040.0,101030.0,0.14847]
[1737994960285,0.005,101040.0,101030.0,0.14847]
[1737994960487,0.00039543,101050.0,101040.0,0.0786]
[1737994960664,0.06128764,101070.0,101060.0,0.148426]
[1737994960897,0.06128764,101070.0,101050.0,0.54424]
[1737994961074,0.06128764,101070.0,101060.0,0.148426]
[1737994962300,0.20969964,101070.0,101050.0,0.544245]
[1737994962510,0.06128764,101070.0,101060.0,0.148426]
[1737994963143,0.06128764,101070.0,101060.0,0.152426]
[1737994963363,0.06128764,101070.0,101060.0,0.154426]
[1737994963565,0.20969864,101070.0,101060.0,0.006]
[1737994963767,0.06128764,101070.0,101060.0,0.006]
[1737994963970,0.20969864,101070.0,101060.0,0.006]
[1737994964784,0.47667855,101070.0,101060.0,0.006]
[1737994966032,0.47667855,101070.0,101060.0,0.002]
[1737994966233,0.67457055,101070.0,101050.0,0.148439]
[1737994966518,0.68557055,101070.0,101060.0,0.001]
[1737994966731,0.51593793,101070.0,101060.0,0.001]
[1737994967138,0.16063493,101070.0,101060.0,0.148426]
[1737994967343,0.15863493,101070.0,101060.0,0.148426]
[1737994967547,0.16663493,101070.0,101060.0,0.148426]
[1737994967974,0.06928764,101070.0,101060.0,0.148426]
[1737994968317,0.06128764,101070.0,101060.0,0.148426]
[1737994968766,0.20970164,101070.0,101050.0,0.544281]
[1737994968940,0.50493093,101070.0,101050.0,0.34636]
[1737994969146,0.15863493,101070.0,101060.0,0.148426]
[1737994969347,0.16063493,101070.0,101060.0,0.148426]
[1737994969814,0.07028764,101070.0,101060.0,0.149426]
[1737994970524,0.070585,101070.0,101060.0,0.149426]
[1737994971241,0.063585,101070.0,101060.0,0.148426]